Cogmind - Beta 14 *** ADVENTURER MODE // 2024.09.29 @ 19:00:19 Player: Don Result: Destroyed by G-47 Trooper with Particle Gun Performance ------------- Evolutions (0) 0 Regions Visited (2) 400 Robots Destroyed (4) 20 Value Destroyed (83) 83 Prototype IDs (0) 0 Alien Tech Used (0) 0 Bonus (0) 0 TOTAL SCORE: 503 Bonus ------- None Cogmind --------- Core Integrity 0/250 Matter 275/300 Energy 73/100 System Corruption 0% Temperature Cool (9) Movement Walking (120) Location -10/Mines Parts ------- > --- POWER (1) -------- (None) > --- PROPULSION (2) --- Aluminum Leg Aluminum Leg > --- UTILITY (2) ------ Medium Storage Unit > --- WEAPON (2) ------- (None) > --- INVENTORY (10) --- Ion Engine Light Ion Engine Large Storage Unit Structural Scanner Terrain Scan Processor ECM Suite Peak State ------------ > --- POWER ------------ Ion Engine > --- PROPULSION ------- Aluminum Leg Aluminum Leg > --- UTILITY ---------- Medium Storage Unit Terrain Scanner > --- WEAPON ----------- Small Laser Assault Rifle > --- INVENTORY -------- Ion Engine Light Ion Engine Light Ion Engine Light Treads Aluminum Leg Aluminum Leg Aluminum Leg Large Storage Unit Structural Scanner ECM Suite [Rating: 8] Favorites ----------- Power Ion Engine Engine Ion Engine Propulsion Aluminum Leg Leg Aluminum Leg Utility Medium Storage Unit Device Terrain Scanner Storage Medium Storage Unit Weapon Assault Rifle Energy Gun Small Laser Ballistic Gun Assault Rifle Build | -11 -10 -10 ------- Run | Yrd Mat Min Slots Evolved . | . . . Power . | . . . Propulsion . | . . . Utility . | . . . Weapon . | . . . Parts Attached 16 | 6 5 5 Power 2 | 1 . 1 Engine 2 | 1 . 1 Core . | . . . Reactor . | . . . Propulsion 6 | 1 2 3 Treads . | . . . Leg 6 | 1 2 3 Wheel . | . . . Hover . | . . . Flight . | . . . Utility 4 | 1 2 1 Device 1 | . 1 . Storage 3 | 1 1 1 Processor . | . . . Hackware . | . . . Protection . | . . . Artifact . | . . . Weapon 4 | 3 1 . Energy Gun 3 | 2 1 . Energy Cannon . | . . . Ballistic Gun 1 | 1 . . Ballistic Cannon . | . . . Launcher . | . . . Special Weapon . | . . . Impact Weapon . | . . . Slashing Weapon . | . . . Piercing Weapon . | . . . Special Melee Weapon . | . . . Unidentified Prototypes . | . . . Parts Lost 6 | . . 6 Power 1 | . . 1 Propulsion 2 | . . 2 Utility 1 | . . 1 Weapon 2 | . . 2 Highest Loss Streak 5 | . . 5 To Critical Strikes . | . . . Average Slot Usage (%) 88 | . 83 90 Engine 12 | . 14 12 Leg 25 | . 25 24 Device 9 | . 2 13 Storage 14 | . 14 14 Energy Gun 12 | . 11 12 Ballistic Gun 12 | . 14 12 Peak Build Rating 8 | 5 7 8 Average Rating 5 | 3 5 6 On Entrance 4 | . 5 7 Naked Turns . | . . . Heaviest Build 19 | 14 19 19 Greatest Support 20 | 10 20 20 Greatest Overweight (x) 3 | 1 1 3 Average Overweight (x) . | . . . Largest Inventory Capacity 10 | 8 10 10 Average Capacity 9 | 7 9 9 Most Carried 10 | 8 10 10 Average Carried 8 | 5 7 8 Final Capacity 10 | 8 10 10 Final Carried 8 | 7 8 6 Class Distribution -------------------- 100% | Mutant Dominant Class ---------------- Mutant | -10/Materials Mutant | -10/Mines Resources | -11 -10 -10 ----------- Run | Yrd Mat Min Matter Collected 411 | 204 106 101 Remotely . | . . . Salvage Created 198 | . . 198 Parts 5 | . . 5 Haulers Intercepted . | . . . Recyclers Shooed . | . . . Parts Field Recycled . | . . . Retrieved Matter . | . . . Parts Self-Destructed . | . . . Prevented . | . . . Kills | -11 -10 -10 ------- Run | Yrd Mat Min Combat Hostiles Destroyed 13 | . . 13 Guns 13 | . . 13 Classes Destroyed 3 | . . 3 Swarmer 3 | . . 3 Demolisher 1 | . . 1 Assembled 9 | . . 9 Best Kill Streak 9 | . . 9 Combat Bots Only 9 | . . 9 Max Kills in Single Turn 1 | . . 1 Gunslinging . | . . . Exploded . | . . . Melee . | . . . Uniques/NPCs Destroyed . | . . . Combat | -11 -10 -10 -------- Run | Yrd Mat Min Hostile Shots Fired 70 | . . 70 Missed 11 | . . 11 Damage Taken 864 | . . 864 Core 261 | . . 261 Absorbed by Shields . | . . . Ignored by Resistances 246 | . . 246 Core Remaining (%) 100 | 100 . . Volleys Fired 31 | . . 31 Largest 2 | . . 2 Hottest 60 | . . 60 Shots Fired 57 | . . 57 Gun 57 | . . 57 Cannon . | . . . Launcher . | . . . Special . | . . . Kinetic 31 | . . 31 Thermal 26 | . . 26 Explosive . | . . . Electromagnetic . | . . . Robot Hit Streak 8 | . . 8 Robot Miss Streak 3 | . . 3 Penetration Max . | . . . Secondary Targets 4 | . . 4 Max Gunslinging Chain 1 | . . 1 Shots Hit Robots 38 | . . 38 Core Hits 23 | . . 23 Critical Kills . | . . . Critical Parts Destroyed . | . . . Critical Strikes . | . . . Melee Attacks . | . . . Impact . | . . . Slashing . | . . . Piercing . | . . . Sneak Attacks . | . . . Combat Hostiles . | . . . Follow-up Attacks . | . . . Damage Inflicted 481 | . . 481 Guns 481 | . . 481 Cannons . | . . . Explosions . | . . . Melee . | . . . Ramming . | . . . Kinetic 288 | . . 288 Thermal 193 | . . 193 Explosive . | . . . Electromagnetic . | . . . Impact . | . . . Slashing . | . . . Piercing . | . . . Highest Corruption . | . . . Average Corruption . | . . . Corruption Purged . | . . . Corruption Blocked . | . . . Overload Shots . | . . . Overflow Damage . | . . . Projectiles . | . . . Explosions . | . . . Melee . | . . . Knockbacks . | . . . Impact . | . . . Kinetic . | . . . Secondary . | . . . Self-Inflicted Damage . | . . . Shots . | . . . Rammed . | . . . Targets Rammed . | . . . Kicked . | . . . Crushed . | . . . Highest Temperature 232 | . . 232 Average Temperature 132 | . . 132 Received Heat Transfer 571 | . . 571 Effects 3 | . . 3 Interference 3 | . . 3 Siege Activations . | . . . Robots Corrupted . | . . . Combat Hostiles . | . . . Parts Fried . | . . . Impact Corruptions . | . . . Robots Melted . | . . . Combat Hostiles . | . . . Parts Melted . | . . . Heat Transferred 425 | . . 425 Parts Sabotaged . | . . . Parts Stolen . | . . . Parts Stripped . | . . . Power Chain Reactions . | . . . Alert | -11 -10 -10 ------- Run | Yrd Mat Min Peak Influence 116 | . 6 116 Initial 1 | . . 1 Average 44 | . 3 78 Maximum Alert Level . | . . . Low Security (%) 100 | 100 100 100 Level 1 . | . . . Level 2 . | . . . Level 3 . | . . . Level 4 . | . . . Level 5 . | . . . High Security . | . . . Max Security . | . . . Squads Dispatched . | . . . Investigation . | . . . Extermination . | . . . Reinforcement . | . . . Assault . | . . . Garrison . | . . . Intercept . | . . . Searches Triggered . | . . . Construction Impeded . | . . . Haulers Reinforced . | . . . Active Scanning Responses . | . . . Cargo Convoy Interrupts . | . . . Stealth | -11 -10 -10 --------- Run | Yrd Mat Min Distress Signals 1 | . . 1 Communications Jammed . | . . . Distress Signals . | . . . Times Spotted 18 | . . 18 Peak Tracking Total 6 | . . 6 Tactical Retreats 4 | . . 4 Traps | -11 -10 -10 ------- Run | Yrd Mat Min Traps Triggered 1 | . 1 . Indirectly . | . . . Trap Hack Attempts . | . . . Triggered . | . . . Disarmed . | . . . Reprogrammed . | . . . Reused . | . . . Traps Extracted . | . . . Installed . | . . . Triggered . | . . . Machines | -11 -10 -10 ---------- Run | Yrd Mat Min Machines Disabled . | . . . Max in Single Turn . | . . . Machines Repaired . | . . . Machines Dismantled . | . . . Machines Sabotaged . | . . . Overloaded Fab Kills . | . . . Hacking | -11 -10 -10 --------- Run | Yrd Mat Min Machines Accessed 1 | . 1 . Terminals 1 | . 1 . Fabricators . | . . . Repair Stations . | . . . Recycling Units . | . . . Scanalyzers . | . . . Garrison Access . | . . . Total Hacks 2 | . 2 . Successful 1 | . 1 . Failed 1 | . 1 . Catastrophic . | . . . Database Lockouts . | . . . Manual . | . . . Terminals 2 | . 2 . Fabricators . | . . . Repair Stations . | . . . Recycling Units . | . . . Scanalyzers . | . . . Garrison Access . | . . . Terminal Hacks 1 | . 1 . Branch Access Points 1 | . 1 . Fabricator Hacks . | . . . Repair Station Hacks . | . . . Recycling Unit Hacks . | . . . Scanalyzer . | . . . Garrison Access Hacks . | . . . Unauthorized Hacks . | . . . Terminals . | . . . Fabricators . | . . . Repair Stations . | . . . Recycling Units . | . . . Scanalyzers . | . . . Garrison Access . | . . . Data Cores Recovered . | . . . Used . | . . . Hacking Detections 1 | . 1 . Full Trace Events . | . . . Feedback Events . | . . . Feedback Blocked . | . . . Robot Schematics Acquired . | . . . Robots Built . | . . . Authchips . | . . . Time . | . . . Total Robot Build Rating . | . . . Part Schematics Acquired . | . . . Parts Built . | . . . Authchips . | . . . Time . | . . . Total Part Build Rating . | . . . Parts Repaired . | . . . Time . | . . . Parts Recycled . | . . . Recycled Matter . | . . . Retrieved Matter . | . . . Retrieved Components . | . . . Parts Scanalyzed . | . . . Part Schematics Acquired . | . . . Parts Damaged . | . . . Bothacking | -11 -10 -10 ------------ Run | Yrd Mat Min Used RIF Installer . | . . . Robots Hacked . | . . . Non-combat . | . . . Combat . | . . . Robot Hacks Applied . | . . . Relay Couplers Released . | . . . Fabnet Peak Effective % . | . . . Robots Rewired . | . . . Allies Hacked . | . . . Hacks Repelled . | . . . Allies | -11 -10 -10 -------- Run | Yrd Mat Min Total Allies . | . . . Largest Group . | . . . Highest-Rated Group . | . . . Highest-Rated Ally . | . . . Total Orders . | . . . Ally Attacks . | . . . Total Damage . | . . . Kills . | . . . Allies Corrupted . | . . . Allies Melted . | . . . Intel | -11 -10 -10 ------- Run | Yrd Mat Min Robot Analysis Total . | . . . Derelict Logs Recovered 1 | . . 1 Drone Launches . | . . . Drone Recoveries . | . . . Exploration | -11 -10 -10 ------------- Run | Yrd Mat Min Turns Passed 573 | 70 190 313 Spaces Moved 335 | 39 138 158 Core 22 | 7 . 15 Treads . | . . . Legs 313 | 32 138 143 Wheels . | . . . Hover . | . . . Flight . | . . . Fastest Speed 50 | 50 120 120 Average Speed 127 | 136 125 127 Slowest Speed 200 | 190 190 200 Overloaded Moves . | . . . Propulsion Burnouts . | . . . Robots Hopped . | . . . Cave-ins Triggered . | . . . Exploration Rate (%) 20 | 4 22 34 Regions Visited 2 Branch Regions 1 Pre-discovered Areas 1 | . . 1 Known Exits Taken 1 | . 1 . Unknown Exits Taken 1 | 1 . . Scrap Searched . | . . . Spaces Dug . | . . . Terrain Destroyed . | . . . Melee . | . . . Projectile . | . . . AOE . | . . . Terrain Rammed . | . . . Walls Destroyed . | . . . Machines Disabled . | . . . Actions | -11 -10 -10 --------- Run | Yrd Mat Min Total 426 | 55 157 214 Wait 10 | . . 10 Move 333 | 38 137 158 Hop . | . . . Pick Up 28 | 11 10 7 Fast Attach 1 | 1 . . Attach 13 | 4 4 5 Detach . | . . . Swap 2 | 1 1 . Drop 8 | . 5 3 Fire 31 | . . 31 Melee . | . . . Ram . | . . . Kick . | . . . Crush . | . . . Escape Stasis . | . . . Rewire . | . . . Trap . | . . . Miscellaneous . | . . . Route ------- -11/Scrapyard -10/Materials -10/Mines (discovered 1 exit: [*Mat]) History --------- Turn | Location | Event 13 | -11/Scrapyard | Discovered new exit (range 15) 71 | -11/Scrapyard | Entered Materials 148 | -10/Materials | Identified exit to Mines 261 | -10/Materials | Entered Mines 269 | -10/Mines | Learned location of Zion (-7) 303 | -10/Mines | Build established: Mutant 380 | -10/Mines | Assembled infested the area 385 | -10/Mines | Assisted by a Guerilla fighting off Assembled 504 | -10/Mines | Destroyed 9 combat bots 536 | -10/Mines | Core integrity fell below 50% 545 | -10/Mines | Core integrity fell below 20% 559 | -10/Mines | Discovered new exit (range 14) 564 | -10/Mines | Lost 5 parts (1p2n2w) 574 | -10/Mines | Destroyed by G-47 Trooper with Particle Gun Last Messages --------------- 00543_ U-05 Engineer builds a Wall. 00544_ The unstable cave ceiling collapses. 00544_ U-05 Engineer destroyed. 00544_ R-06 Scavenger collects Terrain Scanner. 00545_ The unstable cave ceiling collapses. 00547_ R-06 Scavenger collects Wheel. 00548_ The unstable cave ceiling collapses. 00550_ R-06 Scavenger collects Welding Torch. 00551_ The unstable cave ceiling collapses. 00551_ K-01 Serf collects debris. 00558_ U-05 Engineer builds a Wall. 00559_ EXIT=FOUND 00561_ K-01 Serf collects debris. 00563_ Dropped Med. Storage Unit. 00565_ Acquired Med. Storage Unit. 00565_ Terrain Scanner destroyed. 00568_ Acquired Aluminum Leg. 00570_ The unstable cave ceiling collapses. 00571_ Acquired ECM Suite. 00574_ Acquired Ion Engine. Map ----- +----------------------------------------------------+ | ???????????????????????????????????? | | ???????????????????????????????????? | | ???????????????????????????????????? | | ???????????????????????????????????? | | ???????????????????????????????????? | | ???????????????????????????????????? | | ???????????????????????????????????? | | #??????????????????????????????????? | | #??????????????????????????????????? | | ##?????????????????????????????????? | | #??#???????????????????????????????? | | ##?????????????????????????????????? | | ###???????????????# ??????????????? | | ##??????????????## ??????????????? | | ########??????## ??????????????? | | # #??????# ?????????????? | | ## ##### #??????? < ?????????????? | | ?####???# #???#???? #????????????? | | ???????## #???????? #??????#????? | | ???###### #?????#??? g #??????????? | | ???# #?????????? g ??????????? | | ??## ######???????????u ##????????? | | ##?# #???????????? ???? ##???????? | | #?# #??????? ?????????# ##??????? | | #?# #???? ??????????## #??????? | | ### #????????? ?????## @ ##?????? | | #?# ##???????? ????## = ###???? | | #?# #????? ??????#?# #???? | | #?# #??????????????# #???? | | ### #####??????????# k #???? | | ## """ #??????????## ###???? | | ## """ #?????#??#?## ## #????? | | ### """ #???????#### ###t #????? | | ??# #?????### # ##???? | | ??# ####### %% #????? | | #?# = | =! ### ####????? | | ??#########*## # #?#?????? | | ??????????# ## ## # ###???????? | | ??????????# ## # #???????#?? | | ?#????????# ## # # ? ?????? | | ??#???#???# ## " #????? | | ???????#??# ### # ##????? | | ??????????#%#?## ##?????? | | ??????#?#?# #??# ### ##??????? | | ???#??#???# #??# !%! # #???????? | | ??????????# #??###?# % #???????? | | ????????### #???????# ##?#?????? | | ?#??##??# % #???????## ##???????? | | ??#????## ###???????? #????????? | | ????????# #????#?????? ????????? | +----------------------------------------------------+ Best States ------------- Heat Dissipation 25 Energy Generation 10 Energy Capacity 250 Matter Stores 300 Matter Capacity 300 Sight Range 16 Terrain Scan Range 14 Terrain Scan Density 10 Resistance: KI 20 Resistance: TH 20 Resistance: EX 20 Resistance: EM 20 Resistance: I 20 Resistance: S 20 Resistance: P 20 Evasion (%) 55 Offensive Hacking 10 Item Schematics ----------------- None Robot Schematics ------------------ None Fabricated ------------ Nothing Alien Tech Used ----------------- None Achievements -------------- None Challenges ------------ None Game ------ Seed HugeDecoderPod Manual? 0 Play Time 00:09:45 Cumulative 58.5 hours Start 2024.09.29 @ 18:51:29 End 2024.09.29 @ 19:00:19 Sessions 1 Manual Loads 0 Difficulty Adventurer Special Mode None Game No. 23 Rogue 10 Adventurer 13 Explorer 0 Win Type - Total 1 Types 1/0/0/0/0/0/0/0/0 Lore% 3 Gallery% 35 Achievement% 29 Wizard Run 0 Options --------- Layout 2 ASCII 0 Keyboard 0 Movement Mouse Keybinds 0 Fullscreen 1 Font 32/SmallcapsGlow Map View 50x44 Zoom Use 0% Tactical HUD 1 Map Filters NONE Filters NONE Steam 1 RUN: 8eff40a2-6d24-4d00-bd69-d59229e4761b